{"text_format":"3","workbook":"xlsx","n_sheets":13,"sheets":["1 класс","2 класс","3 класс","4 класс","5 класс","6 класс","7 класс","8 класс","9 класс","10 класс","11а класс","11б класс","11 (унив.)"],"read":"whole","date_system":"1900"}

{"sheet":"1 класс","index":0,"n_rows":24,"n_cols":8,"rows_kept":24,"merged":[[0,1,0,7],[1,1,1,7],[2,1,2,7],[3,1,3,7],[4,1,6,1],[4,2,6,2],[4,3,4,6],[4,7,6,7],[6,3,6,6],[7,1,8,1],[9,1,10,1],[15,1,16,1],[19,1,19,2],[20,1,20,2],[23,1,23,2]]}
[null,"УЧЕБНЫЙ ПЛАН"]
[null,"Муниципального бюджетного общеобразовательного учреждения \n \"Гимназия №175\" Советского района города Казани"]
[null,"на 2021/2022 учебный год "]
[null,"для 1 классов"]
[null,"Предметные области","Учебные предметы","классы",{"$nulls":3},"Всего часов"]
[{"$nulls":3},"1 класс                (2021-2022)","2 класс                (2022-2023)","3 класс                (2023-2024)","4 класс                (2024-2025)"]
[{"$nulls":3},"количество часов в неделю"]
[null,"Русский язык и литературное чтение ","Русский язык",4,5,5,5,{"$f":"SUM(D8:G8)","v":19}]
[null,null,"Литературное чтение",2,3,3,3,{"$f":"SUM(D9:G9)","v":11}]
[null,"Родной язык и литературное чтение на родном языке","Родной язык",2,2,2,2,{"$f":"SUM(D10:G10)","v":8}]
[null,null,"Литературное чтение на родном языке",1,1,1,1,{"$f":"SUM(D11:G11)","v":4}]
[null,"Иностранный язык","Инострнаный язык (английский)",null,2,2,2,6]
[null,"Математика и информатика","Математика и информатика",4,4,4,4,16]
[null,"Обществознание и естествознание (Окружающий мир)","Обществознание и естествознание (Окружающий мир) ",2,2,2,2,8]
[null,"Основы религиозных культур и светской этики","Основы религиозных культур и светской этики",{"$nulls":3},1,{"$f":"SUM(D15:G15)","v":1}]
[null,"Искусство","Музыка",1,1,1,1,4]
[null,null,"Изобразительное искусство",1,1,1,1,4]
[null,"Технология","Технология",1,1,1,1,4]
[null,"Физическая культура ","Физическая культура ",3,3,3,3,12]
[null,"ИТОГО:",null,{"$f":"SUM(D8:D19)","v":21},{"$f":"SUM(E8:E19)","v":25},{"$f":"SUM(F8:F19)","v":25},{"$f":"SUM(G8:G19)","v":26},97]
[null,"Часть, формируемая участниками образовательных отношений",null,null,1,1,null,2]
[null,"Русский язык и литературное чтение ","Русский язык",null,1,null,null,1]
[null,"Математика и информатика","Математика и информатика",null,null,1,null,1]
[null,"Предельно допустимая недельная нагрузка ",null,{"$f":"SUM(D20,D21)","v":21},26,26,{"$f":"SUM(G20,G21)","v":26},99]

{"sheet":"2 класс","index":1,"n_rows":24,"n_cols":8,"rows_kept":24,"merged":[[0,1,0,7],[1,1,1,7],[2,1,2,7],[3,1,3,7],[4,1,6,1],[4,2,6,2],[4,3,4,6],[4,7,6,7],[6,3,6,6],[7,1,8,1],[9,1,10,1],[15,1,16,1],[19,1,19,2],[20,1,20,2],[23,1,23,2]]}
[null,"УЧЕБНЫЙ ПЛАН"]
[null,"Муниципального бюджетного общеобразовательного учреждения \n \"Гимназия №175\" Советского района города Казани"]
[null,"на 2021/2022 учебный год "]
[null,"для 2 классов"]
[null,"Предметные области","Учебные предметы","классы",{"$nulls":3},"Всего часов"]
[{"$nulls":3},"1 класс                (2020-2021)","2 класс                (2021-2022)","3 класс                (2022-2023)","4 класс                (2023-2024)"]
[{"$nulls":3},"количество часов в неделю"]
[null,"Русский язык и литературное чтение ","Русский язык",4,5,5,5,{"$f":"SUM(D8:G8)","v":19}]
[null,null,"Литературное чтение",2,3,3,3,{"$f":"SUM(D9:G9)","v":11}]
[null,"Родной язык и литературное чтение на родном языке","Родной язык",2,2,2,2,{"$f":"SUM(D10:G10)","v":8}]
[null,null,"Литературное чтение на родном языке",1,1,1,1,{"$f":"SUM(D11:G11)","v":4}]
[null,"Иностранный язык","Инострнаный язык (английский)",null,2,2,2,6]
[null,"Математика и информатика","Математика и информатика",4,4,4,4,16]
[null,"Обществознание и естествознание (Окружающий мир)","Обществознание и естествознание (Окружающий мир) ",2,2,2,2,8]
[null,"Основы религиозных культур и светской этики","Основы религиозных культур и светской этики",{"$nulls":3},1,{"$f":"SUM(D15:G15)","v":1}]
[null,"Искусство","Музыка",1,1,1,1,4]
[null,null,"Изобразительное искусство",1,1,1,1,4]
[null,"Технология","Технология",1,1,1,1,4]
[null,"Физическая культура ","Физическая культура ",3,3,3,3,12]
[null,"ИТОГО:",null,{"$f":"SUM(D8:D19)","v":21},{"$f":"SUM(E8:E19)","v":25},{"$f":"SUM(F8:F19)","v":25},{"$f":"SUM(G8:G19)","v":26},97]
[null,"Часть, формируемая участниками образовательных отношений",null,null,1,1,null,2]
[null,"Русский язык и литературное чтение ","Русский язык",null,1,null,null,1]
[null,"Математика и информатика","Математика и информатика",null,null,1,null,1]
[null,"Предельно допустимая недельная нагрузка ",null,{"$f":"SUM(D20,D21)","v":21},26,26,{"$f":"SUM(G20,G21)","v":26},99]

{"sheet":"3 класс","index":2,"n_rows":23,"n_cols":8,"rows_kept":23,"merged":[[0,1,0,7],[1,1,1,7],[2,1,2,7],[3,1,3,7],[4,1,6,1],[4,2,6,2],[4,3,4,6],[4,7,6,7],[6,3,6,6],[7,1,8,1],[9,1,10,1],[15,1,16,1],[19,1,19,2],[20,1,20,2],[22,1,22,2]]}
[null,"УЧЕБНЫЙ ПЛАН"]
[null,"Муниципального бюджетного общеобразовательного учреждения \n \"Гимназия №175\" Советского района города Казани"]
[null,"на 2021/2022 учебный год "]
[null,"для 3 классов"]
[null,"Предметные области","Учебные предметы","классы",{"$nulls":3},"Всего часов"]
[{"$nulls":3},"1 класс                (2019-2020)","2 класс                (2020-2021)","3 класс                (2021-2022)","4 класс                (2022-2023)"]
[{"$nulls":3},"количество часов в неделю"]
[null,"Русский язык и литературное чтение ","Русский язык",4,5,5,5,{"$f":"SUM(D8:G8)","v":19}]
[null,null,"Литературное чтение",2,3,3,3,{"$f":"SUM(D9:G9)","v":11}]
[null,"Родной язык и литературное чтение на родном языке","Родной язык",2,2,2,2,{"$f":"SUM(D10:G10)","v":8}]
[null,null,"Литературное чтение на родном языке",1,1,1,1,{"$f":"SUM(D11:G11)","v":4}]
[null,"Иностранный язык","Инострнаный язык (английский)",null,2,2,2,6]
[null,"Математика и информатика","Математика и информатика",4,4,4,4,16]
[null,"Обществознание и естествознание (Окружающий мир)","Обществознание и естествознание (Окружающий мир)",2,2,2,2,8]
[null,"Основы религиозных культур и светской этики","Основы религиозных культур и светской этики",{"$nulls":3},1,{"$f":"SUM(D15:G15)","v":1}]
[null,"Искусство","Музыка",1,1,1,1,4]
[null,null,"Изобразительное искусство",1,1,1,1,4]
[null,"Технология","Технология",1,1,1,1,4]
[null,"Физическая культура ","Физическая культура ",3,3,3,3,12]
[null,"ИТОГО:",null,{"$f":"SUM(D8:D19)","v":21},{"$f":"SUM(E8:E19)","v":25},{"$f":"SUM(F8:F19)","v":25},{"$f":"SUM(G8:G19)","v":26},97]
[null,"Часть, формируемая участниками образовательных отношений",null,null,1,1,null,2]
[null,"Математика и информатика","Математика и информатика",null,1,1,null,2]
[null,"Предельно допустимая недельная нагрузка ",null,{"$f":"SUM(D20,D21)","v":21},26,26,{"$f":"SUM(G20,G21)","v":26},99]

{"sheet":"4 класс","index":3,"n_rows":23,"n_cols":8,"rows_kept":23,"merged":[[0,1,0,7],[1,1,1,7],[2,1,2,7],[3,1,3,7],[4,1,6,1],[4,2,6,2],[4,3,4,6],[4,7,6,7],[6,3,6,6],[7,1,8,1],[9,1,10,1],[15,1,16,1],[19,1,19,2],[20,1,20,2],[22,1,22,2]]}
[null,"УЧЕБНЫЙ ПЛАН"]
[null,"Муниципального бюджетного общеобразовательного учреждения \n \"Гимназия №175\" Советского района города Казани"]
[null,"на 2021/2022 учебный год "]
[null,"для 4 классов"]
[null,"Предметные области","Учебные предметы","классы",{"$nulls":3},"Всего часов"]
[{"$nulls":3},"1 класс                (2018-2019)","2 класс                (2019-2020)","3 класс                (2020-2021)","4 класс                (2021-2022)"]
[{"$nulls":3},"количество часов в неделю"]
[null,"Русский язык и литературное чтение ","Русский язык",4,5,5,5,{"$f":"SUM(D8:G8)","v":19}]
[null,null,"Литературное чтение",2,3,3,3,{"$f":"SUM(D9:G9)","v":11}]
[null,"Родной язык и литературное чтение на родном языке","Родной язык",2,2,2,2,{"$f":"SUM(D10:G10)","v":8}]
[null,null,"Литературное чтение на родном языке",1,1,1,1,{"$f":"SUM(D11:G11)","v":4}]
[null,"Иностранный язык","Инострнаный язык (английский)",null,2,2,2,6]
[null,"Математика и информатика","Математика и информатика",4,4,4,4,16]
[null,"Обществознание и естествознание (Окружающий мир)","Окружающий мир ",2,2,2,2,8]
[null,"Основы религиозных культур и светской этики","Основы религиозных культур и светской этики",{"$nulls":3},1,{"$f":"SUM(D15:G15)","v":1}]
[null,"Искусство","Музыка",1,1,1,1,4]
[null,null,"Изобразительное искусство",1,1,1,1,4]
[null,"Технология","Технология",1,1,1,1,4]
[null,"Физическая культура ","Физическая культура ",3,3,3,3,12]
[null,"ИТОГО:",null,{"$f":"SUM(D8:D19)","v":21},{"$f":"SUM(E8:E19)","v":25},{"$f":"SUM(F8:F19)","v":25},{"$f":"SUM(G8:G19)","v":26},97]
[null,"Часть, формируемая участниками образовательных отношений",null,null,1,1,null,2]
[null,"Математика и информатика","Математика и информатика",null,1,1,null,2]
[null,"Предельно допустимая недельная нагрузка ",null,{"$f":"SUM(D20,D21)","v":21},26,26,{"$f":"SUM(G20,G21)","v":26},99]

{"sheet":"5 класс","index":4,"n_rows":35,"n_cols":9,"rows_kept":35,"merged":[[0,1,0,8],[1,1,1,8],[2,1,2,8],[3,1,3,8],[5,1,7,1],[5,2,7,2],[5,3,5,7],[5,8,7,8],[7,3,7,7],[8,1,9,1],[10,1,11,1],[14,1,17,1],[18,1,20,1],[21,1,23,1],[24,1,25,1],[27,1,28,1],[29,1,29,2],[30,1,30,2],[34,1,34,2]]}
[null,"УЧЕБНЫЙ ПЛАН"]
[null,"Муниципального бюджетного общеобразовательного учреждения \n\"Гимназия №175\" Советского района города Казани"]
[null,"на 2021/2022 учебный год "]
[null,"для 5 классов "]
[]
[null,"Предметные области","Учебные предметы","классы",{"$nulls":4},"Всего часов"]
[{"$nulls":3},"5 класс                (2021-2022)","6 класс                (2022-2023)","7 класс                (2023-2024)","8 класс                (2024-2025)","9 класс                (2025-2026)"]
[{"$nulls":3},"количество часов в неделю"]
[null,"Русский язык и литература","Русский язык",5,6,4,3,3,{"$f":"SUM(D9:H9)","v":21}]
[null,null,"Литература",3,3,2,2,3,{"$f":"SUM(D10:H10)","v":13}]
[null,"Родной язык и родная литература","Родной язык",2,2,2,2,2,{"$f":"SUM(D11:H11)","v":10}]
[null,null,"Родная литература",1,1,1,1,1,{"$f":"SUM(D12:H12)","v":5}]
[null,"Иностранные языки","Иностранный язык (английский)",3,3,3,3,3,15]
[null,"Основы духовно-нравственной культуры народов России","Основы духовно-нравственной \nкультуры народов России",1,{"$nulls":4},1]
[null,"Математика и информатика","Математика ",5,5,{"$nulls":3},10]
[null,null,"Алгебра",null,null,3,3,3,9]
[null,null,"Геометрия",null,null,2,2,2,6]
[null,null,"Информатика",null,null,1,1,1,3]
[null,"Общественно-научные предметы","История России. Всеобшая история",2,2,2,2,2,10]
[null,null,"Обществознание",null,1,1,1,1,4]
[null,null,"География",1,1,2,2,2,8]
[null,"Естественно-научные предметы","Физика",null,null,2,2,3,{"$f":"SUM(F22:H22)","v":7}]
[null,null,"Химия",{"$nulls":3},2,2,{"$f":"SUM(G23:H23)","v":4}]
[null,null,"Биология",1,1,1,2,2,7]
[null,"Искусство","Музыка",1,1,1,1,null,4]
[null,null,"Изобразительное искусство",1,1,1,null,null,3]
[null,"Технология","Технология",2,2,2,2,1,9]
[null,"Физическая культура и основы безопасности жизнедеятельности","Физическая культура ",3,3,3,3,3,15]
[null,null,"ОБЖ",{"$nulls":3},1,1,2]
[null,"ИТОГО:",null,{"$f":"SUM(D9:D29)","v":31},{"$f":"SUM(E9:E29)","v":32},{"$f":"SUM(F9:F29)","v":33},{"$f":"SUM(G9:G29)","v":35},{"$f":"SUM(H9:H29)","v":35},{"$f":"SUM(D30:H30)","v":166}]
[null,"Часть, формируемая участниками образовательных отношений",null,1,1,2,1,1,{"$f":"SUM(D31:H31)","v":6}]
[null,"Русский язык и литература","Русский язык"]
[null,"Естественно-научные предметы","Биология",null,null,1,null,null,1]
[null,"Финансовая грамотность","Финансовая грамотность",1,1,1,1,1,4]
[null,"Предельно допустимая недельная нагрузка ",null,32,33,35,{"$f":"SUM(G30+G31)","v":36},{"$f":"SUM(H30+H31)","v":36},{"$f":"SUM(I30+I31)","v":172}]

{"sheet":"6 класс","index":5,"n_rows":36,"n_cols":9,"rows_kept":36,"merged":[[0,1,0,8],[1,1,1,8],[2,1,2,8],[3,1,3,8],[5,1,7,1],[5,2,7,2],[5,3,5,7],[5,8,7,8],[7,3,7,7],[8,1,9,1],[10,1,11,1],[12,1,13,1],[15,1,18,1],[19,1,21,1],[22,1,24,1],[25,1,26,1],[28,1,29,1],[30,1,30,2],[31,1,31,2],[35,1,35,2]]}
[null,"УЧЕБНЫЙ ПЛАН"]
[null,"Муниципального бюджетного общеобразовательного учреждения \n\"Гимназия №175\" Советского района города Казани"]
[null,"на 2021/2022 учебный год "]
[null,"для 6 классов "]
[]
[null,"Предметные области","Учебные предметы","классы",{"$nulls":4},"Всего часов"]
[{"$nulls":3},"5 класс                (2020-2021)","6 класс                (2021-2022)","7 класс                (2022-2023)","8 класс                (2023-2024)","9 класс                (2024-2025)"]
[{"$nulls":3},"количество часов в неделю"]
[null,"Русский язык и литература","Русский язык",5,6,4,3,3,{"$f":"SUM(D9:H9)","v":21}]
[null,null,"Литература",3,3,2,2,3,{"$f":"SUM(D10:H10)","v":13}]
[null,"Родной язык и родная литература","Родной язык",2,2,2,2,2,{"$f":"SUM(D11:H11)","v":10}]
[null,null,"Родная литература",1,1,1,1,1,{"$f":"SUM(D12:H12)","v":5}]
[null,"Иностранные языки","Иностранный язык (английский)",3,3,3,3,3,15]
[null,null,"Второй иностранный язык (немецкий)",1,1,1,1,1,5]
[null,"Основы духовно-нравственной культуры народов России","Основы духовно-нравственной \nкультуры народов России",1,{"$nulls":4},1]
[null,"Математика и информатика","Математика ",5,5,{"$nulls":3},10]
[null,null,"Алгебра",null,null,3,3,3,9]
[null,null,"Геометрия",null,null,2,2,2,6]
[null,null,"Информатика",null,null,1,1,1,3]
[null,"Общественно-научные предметы","История России. Всеобшая история",2,2,2,2,2,10]
[null,null,"Обществознание",null,1,1,1,1,4]
[null,null,"География",1,1,2,2,2,8]
[null,"Естественно-научные предметы","Физика",null,null,2,2,3,{"$f":"SUM(F23:H23)","v":7}]
[null,null,"Химия",{"$nulls":3},2,2,{"$f":"SUM(G24:H24)","v":4}]
[null,null,"Биология",1,1,1,2,2,7]
[null,"Искусство","Музыка",1,1,1,1,null,4]
[null,null,"Изобразительное искусство",1,1,1,null,null,3]
[null,"Технология","Технология",2,2,2,2,1,9]
[null,"Физическая культура и основы безопасности жизнедеятельности","Физическая культура ",2,2,2,2,2,10]
[null,null,"ОБЖ",{"$nulls":3},1,1,2]
[null,"ИТОГО:",null,{"$f":"SUM(D9:D30)","v":31},{"$f":"SUM(E9:E30)","v":32},{"$f":"SUM(F9:F30)","v":33},{"$f":"SUM(G9:G30)","v":35},{"$f":"SUM(H9:H30)","v":35},{"$f":"SUM(D31:H31)","v":166}]
[null,"Часть, формируемая участниками образовательных отношений",null,1,1,2,1,1,{"$f":"SUM(D32:H32)","v":6}]
[null,"Русский язык и литература","Русский язык",{"$nulls":4},1,{"$f":"SUM(F33:H33)","v":1}]
[null,"Естественно-научные предметы","Биология",null,null,1,null,null,1]
[null,"Физическая культура и основы безопасности жизнедеятельности","Физическая культура ",1,1,1,1,null,4]
[null,"Предельно допустимая недельная нагрузка ",null,32,33,35,{"$f":"SUM(G31+G32)","v":36},{"$f":"SUM(H31+H32)","v":36},{"$f":"SUM(I31+I32)","v":172}]

{"sheet":"7 класс","index":6,"n_rows":37,"n_cols":9,"rows_kept":37,"merged":[[0,1,0,8],[1,1,1,8],[2,1,2,8],[3,1,3,8],[5,1,7,1],[5,2,7,2],[5,3,5,7],[5,8,7,8],[7,3,7,7],[8,1,9,1],[10,1,11,1],[12,1,13,1],[14,1,17,1],[18,1,20,1],[21,1,23,1],[24,1,25,1],[27,1,28,1],[30,1,30,2],[31,1,31,2],[36,1,36,2]]}
[null,"УЧЕБНЫЙ ПЛАН"]
[null,"Муниципального бюджетного общеобразовательного учреждения \n\"Гимназия №175\" Советского района города Казани"]
[null,"на 2021/2022 учебный год "]
[null,"для 7 классов "]
[]
[null,"Предметные области","Учебные предметы","классы",{"$nulls":4},"Всего часов"]
[{"$nulls":3},"5 класс                (2019-2020)","6 класс                (2020-2021)","7 класс                (2021-2022)","8 класс                (2022-2023)","9 класс                (2023-2024)"]
[{"$nulls":3},"количество часов в неделю"]
[null,"Русский язык и литература","Русский язык",5,6,4,3,3,{"$f":"SUM(D9:H9)","v":21}]
[null,null,"Литература",3,3,2,2,3,{"$f":"SUM(D10:H10)","v":13}]
[null,"Родной язык и родная литература","Родной язык",2,2,2,2,2,{"$f":"SUM(D11:H11)","v":10}]
[null,null,"Родная литература",1,1,1,1,1,{"$f":"SUM(D12:H12)","v":5}]
[null,"Иностранные языки","Иностранный язык (английский)",3,3,3,3,3,15]
[null,null,"Второй иностранный язык (немецкий)",1,1,1,1,1,5]
[null,"Математика и информатика","Математика ",5,5,{"$nulls":3},10]
[null,null,"Алгебра",null,null,3,3,3,9]
[null,null,"Геометрия",null,null,2,2,2,6]
[null,null,"Информатика",null,null,1,1,1,3]
[null,"Общественно-научные предметы","История России. Всеобшая история",2,2,2,2,2,10]
[null,null,"Обществознание",null,1,1,1,1,4]
[null,null,"География",1,1,2,2,2,8]
[null,"Естественно-научные предметы","Физика",null,null,2,2,3,{"$f":"SUM(F22:H22)","v":7}]
[null,null,"Химия",{"$nulls":3},2,2,{"$f":"SUM(G23:H23)","v":4}]
[null,null,"Биология",1,1,1,2,2,7]
[null,"Искусство","Музыка",1,1,1,1,null,4]
[null,null,"Изобразительное искусство",1,1,1,null,null,3]
[null,"Технология","Технология",2,2,2,1,null,7]
[null,"Физическая культура и основы безопасности жизнедеятельности","Физическая культура ",2,2,2,2,2,10]
[null,null,"ОБЖ",{"$nulls":3},1,1,2]
[null,"Основы духовно-нравственной культуры народов России","Основы духовно-нравственной \nкультуры народов России",1,{"$nulls":4},1]
[null,"ИТОГО:",null,{"$f":"SUM(D9:D30)","v":31},{"$f":"SUM(E9:E29)","v":32},{"$f":"SUM(F9:F29)","v":33},{"$f":"SUM(G9:G29)","v":34},{"$f":"SUM(H9:H29)","v":34},{"$f":"SUM(D31:H31)","v":164}]
[null,"Часть, формируемая участниками образовательных отношений",null,1,1,2,2,2,{"$f":"SUM(D32:H32)","v":8}]
[null,"Математика и информатика","Алгебра",{"$nulls":3},1,1,{"$f":"SUM(F33:H33)","v":2}]
[null,"Естественно-научные предметы","Биология",null,null,1,null,null,1]
[null,"Общественно-научные предметы","Обществознание",1,{"$nulls":4},1]
[null,"Физическая культура и основы безопасности жизнедеятельности","Физическая культура ",null,1,1,1,1,4]
[null,"Предельно допустимая недельная нагрузка ",null,32,33,35,{"$f":"SUM(G31+G32)","v":36},{"$f":"SUM(H31+H32)","v":36},{"$f":"SUM(I31+I32)","v":172}]

{"sheet":"8 класс","index":7,"n_rows":38,"n_cols":9,"rows_kept":38,"merged":[[0,1,0,8],[1,1,1,8],[2,1,2,8],[3,1,3,8],[5,1,7,1],[5,2,7,2],[5,3,5,7],[5,8,7,8],[7,3,7,7],[8,1,9,1],[10,1,11,1],[12,1,13,1],[14,1,17,1],[18,1,20,1],[21,1,23,1],[24,1,25,1],[27,1,28,1],[30,1,30,2],[31,1,31,2],[32,1,33,1],[37,1,37,2]]}
[null,"УЧЕБНЫЙ ПЛАН"]
[null,"Муниципального бюджетного общеобразовательного учреждения \n\"Гимназия №175\" Советского района города Казани"]
[null,"на 2021/2022 учебный год "]
[null,"для 8 классов "]
[]
[null,"Предметные области","Учебные предметы","классы",{"$nulls":4},"Всего часов"]
[{"$nulls":3},"5 класс                (2018-2019)","6 класс                (2019-2020)","7 класс                (2020-2021)","8 класс                (2021-2022)","9 класс                (2022-2023)"]
[{"$nulls":3},"количество часов в неделю"]
[null,"Русский язык и литература","Русский язык",5,6,4,3,3,{"$f":"SUM(D9:H9)","v":21}]
[null,null,"Литература",3,3,2,2,3,{"$f":"SUM(D10:H10)","v":13}]
[null,"Родной язык и родная литература","Родной язык",2,2,2,2,2,{"$f":"SUM(D11:H11)","v":10}]
[null,null,"Родная литература",1,1,1,1,1,{"$f":"SUM(D12:H12)","v":5}]
[null,"Иностранные языки","Иностранный язык (английский)",3,3,3,3,3,15]
[null,null,"Второй иностранный язык (немецкий)",null,null,1,1,1,3]
[null,"Математика и информатика","Математика ",5,5,{"$nulls":3},10]
[null,null,"Алгебра",null,null,3,3,3,9]
[null,null,"Геометрия",null,null,2,2,2,6]
[null,null,"Информатика",null,null,1,1,1,3]
[null,"Общественно-научные предметы","История России. Всеобщая история",2,2,2,2,2,10]
[null,null,"Обществознание",null,1,1,1,1,5]
[null,null,"География",1,1,2,2,2,8]
[null,"Естественно-научные предметы","Физика",null,null,2,2,3,{"$f":"SUM(F22:H22)","v":7}]
[null,null,"Химия",{"$nulls":3},2,2,{"$f":"SUM(G23:H23)","v":4}]
[null,null,"Биология",1,1,1,2,2,7]
[null,"Искусство","Музыка",1,1,1,1,null,4]
[null,null,"Изобразительное искусство",1,1,1,null,null,3]
[null,"Технология","Технология",2,2,2,1,null,7]
[null,"Физическая культура и основы безопасности жизнедеятельности","Физическая культура ",3,3,2,2,2,12]
[null,null,"ОБЖ",{"$nulls":3},1,1,2]
[null,"Основы духовно-нравственной культуры народов России","Основы духовно-нравственной \nкультуры народов России",1,{"$nulls":4},1]
[null,"ИТОГО:",null,{"$f":"SUM(D9:D30)","v":31},{"$f":"SUM(E9:E29)","v":32},{"$f":"SUM(F9:F29)","v":33},{"$f":"SUM(G9:G29)","v":34},{"$f":"SUM(H9:H29)","v":34},{"$f":"SUM(D31:H31)","v":164}]
[null,"Часть, формируемая участниками образовательных отношений",null,1,1,2,2,2,8]
[null,"Математика и информатика","Математика ",null,1,{"$nulls":3},1]
[null,null,"Алгебра",{"$nulls":3},1,1,{"$f":"SUM(F34:H34)","v":2}]
[null,"Естественно-научные предметы","Биология",null,null,1,null,null,1]
[null,"Общественно-научные предметы","Обществознание",1,{"$nulls":4},1]
[null,"Физическая культура и основы безопасности жизнедеятельности","Физическая культура ",null,null,1,1,1,3]
[null,"Предельно допустимая недельная нагрузка ",null,{"$f":"SUM(D31+D32)","v":32},{"$f":"SUM(E31+E32)","v":33},{"$f":"SUM(F31+F32)","v":35},{"$f":"SUM(G31+G32)","v":36},{"$f":"SUM(H31+H32)","v":36},172]

{"sheet":"9 класс","index":8,"n_rows":38,"n_cols":9,"rows_kept":38,"merged":[[0,1,0,8],[1,1,1,8],[2,1,2,8],[3,1,3,8],[5,1,7,1],[5,2,7,2],[5,3,5,7],[5,8,7,8],[7,3,7,7],[8,1,9,1],[10,1,11,1],[12,1,13,1],[14,1,17,1],[18,1,20,1],[21,1,23,1],[24,1,25,1],[27,1,28,1],[30,1,30,2],[31,1,31,2],[32,1,33,1],[37,1,37,2]]}
[null,"УЧЕБНЫЙ ПЛАН"]
[null,"Муниципального бюджетного общеобразовательного учреждения \n\"Гимназия №175\" Советского района города Казани"]
[null,"на 2021/2022 учебный год "]
[null,"для 9 классов "]
[]
[null,"Предметные области","Учебные предметы","классы",{"$nulls":4},"Всего часов"]
[{"$nulls":3},"5 класс                (2017-2018)","6 класс                (2018-2019)","7 класс                (2019-2020)","8 класс                (2020-2021)","9 класс                (2021-2022)"]
[{"$nulls":3},"количество часов в неделю"]
[null,"Русский язык и литература","Русский язык",5,6,4,3,3,{"$f":"SUM(D9:H9)","v":21}]
[null,null,"Литература",3,3,2,2,3,{"$f":"SUM(D10:H10)","v":13}]
[null,"Родной язык и родная литература","Родной язык",2,2,2,2,2,{"$f":"SUM(D11:H11)","v":10}]
[null,null,"Родная литература",1,1,1,1,1,{"$f":"SUM(D12:H12)","v":5}]
[null,"Иностранные языки","Иностранный язык (английский)",3,3,3,3,3,15]
[null,null,"Второй иностранный язык (немецкий)",null,null,1,1,1,3]
[null,"Математика и информатика","Математика ",5,5,{"$nulls":3},10]
[null,null,"Алгебра",null,null,3,3,3,9]
[null,null,"Геометрия",null,null,2,2,2,6]
[null,null,"Информатика",null,null,1,1,1,3]
[null,"Общественно-научные предметы","История России. Всеобщая история",2,2,2,2,2,10]
[null,null,"Обществознание",null,1,1,1,1,5]
[null,null,"География",1,1,2,2,2,8]
[null,"Естественно-научные предметы","Физика",null,null,2,2,3,{"$f":"SUM(F22:H22)","v":7}]
[null,null,"Химия",{"$nulls":3},2,2,{"$f":"SUM(G23:H23)","v":4}]
[null,null,"Биология",1,1,1,2,2,7]
[null,"Искусство","Музыка",1,1,1,1,null,4]
[null,null,"Изобразительное искусство",1,1,1,null,null,3]
[null,"Технология","Технология",2,2,2,1,null,7]
[null,"Физическая культура и основы безопасности жизнедеятельности","Физическая культура ",3,3,2,2,2,12]
[null,null,"ОБЖ",{"$nulls":3},1,1,2]
[null,"Основы духовно-нравственной культуры народов России","Основы духовно-нравственной \nкультуры народов России",1,{"$nulls":4},1]
[null,"ИТОГО:",null,{"$f":"SUM(D9:D30)","v":31},{"$f":"SUM(E9:E29)","v":32},{"$f":"SUM(F9:F29)","v":33},{"$f":"SUM(G9:G29)","v":34},{"$f":"SUM(H9:H29)","v":34},{"$f":"SUM(D31:H31)","v":164}]
[null,"Часть, формируемая участниками образовательных отношений",null,1,1,2,2,2,8]
[null,"Математика и информатика","Математика ",null,1,{"$nulls":3},1]
[null,null,"Алгебра",{"$nulls":3},1,1,{"$f":"SUM(F34:H34)","v":2}]
[null,"Естественно-научные предметы","Биология",null,null,1,null,null,1]
[null,"Общественно-научные предметы","Обществознание",1,{"$nulls":4},1]
[null,"Физическая культура и основы безопасности жизнедеятельности","Физическая культура",null,null,1,1,1,3]
[null,"Предельно допустимая недельная нагрузка ",null,{"$f":"SUM(D31+D32)","v":32},33,35,36,36,172]

{"sheet":"10 класс","index":9,"n_rows":33,"n_cols":6,"rows_kept":33,"merged":[[0,0,0,7],[1,0,1,7],[2,0,2,7],[3,0,3,7],[4,0,5,0],[4,1,5,1],[4,2,5,2],[4,3,4,5],[6,0,7,0],[11,0,14,0],[15,0,16,0],[15,1,18,1],[15,2,18,2],[15,3,18,3],[15,4,18,4],[15,5,18,5],[19,0,20,0],[21,0,21,1],[22,0,22,1],[23,0,24,0],[23,1,24,1],[23,2,24,2],[23,3,24,3],[23,4,24,4],[23,5,24,5],[27,0,29,0],[30,0,30,1],[31,0,31,1],[32,0,32,2]]}
["УЧЕБНЫЙ ПЛАН "]
["Муниципального бюджетного общеобразовательного учреждения \n\"Гимназия №175\" Советского района города Казани"]
["на 2021/2022 учебный год "]
["для 10f класса (универсальный профиль обучения)"]
["Предметные \nобласти","Учебные предметы","Уровень","Количество часов в неделю"]
[{"$nulls":3},"10а класс\n(2021-2022)","11а класс \n(2022-2023)","Всего"]
["Русский язык и литература","Русский язык","Углубленный",3,3,6]
[null,"Литература","Базовый",3,3,6]
["Родной язык и родная литература","Родной язык","Базовый",1,1,2]
["Иностранные языки","Иностранный язык \n(английский)","Базовый",3,3,6]
["Математика и информатика","Математика ","Базовый",5,5,10]
["Общественные науки","История","Базовый",2,2,4]
[null,"Обществознание","Базовый",2,2,4]
[null,"Право","Углубленный",2,2,4]
[null,"Экономика","Базовый",null,1,1]
["Естественные науки","Астрономия","Базовый",null,1,1]
[]
[]
[]
["Физическая культура, экология и основы безопасности жизнедеятельности","Физическая культура","Базовый",3,3,6]
[null,"Основы безопасности жизнедеятельности","Базовый",1,1,2]
["Индивидуальный проект",null,null,1,1,2]
["Дополнительные учебные предметы, \nкурсы по выбору",null,null,1,null,1]
["Родной язык и родная литература","Родная литература","Базовый",1,1,2]
[]
["Математика и информатика","Информатика","Базовый",2,2,4]
["Общественные науки","География","Базовый",1,null,1]
["Естественные науки","Физика","Базовый",2,2,4]
[null,"Химия","Базовый",2,2,4]
[null,"Биология","Базовый",1,1,2]
[" - Основы финансовой математики \n - Решение биологических задач повышенной сложности\n- Основы финансовой грамотности\n - по истории\n- \n",null,"КВ",1,null,1]
[" - Углубленное изучение некоторых вопросов математики\n - по химии\n - по истории",null,"КВ",null,1,1]
["Итого",null,null,{"$f":"SUM(D7:D32)","v":37},{"$f":"SUM(E7:E32)","v":37},{"$f":"SUM(F7:F32)","v":74}]

{"sheet":"11а класс","index":10,"n_rows":30,"n_cols":6,"rows_kept":30,"merged":[[0,0,0,7],[1,0,1,7],[2,0,2,7],[3,0,3,7],[4,0,5,0],[4,1,5,1],[4,2,5,2],[4,3,4,5],[6,0,7,0],[8,0,9,0],[10,0,11,0],[12,0,13,0],[14,0,15,0],[16,0,17,0],[18,0,18,1],[19,0,19,1],[22,0,23,0],[24,0,24,1],[25,0,25,1],[26,0,26,1],[27,0,27,1],[28,0,28,1],[29,0,29,2]]}
["УЧЕБНЫЙ ПЛАН "]
["Муниципального бюджетного общеобразовательного учреждения \n\"Гимназия №175\" Советского района города Казани"]
["на 2021/2022 учебный год "]
["для 10а класса (универсальный профиль обучения)"]
["Предметная \nобласть","Учебный предмет","Уровень","Количество часов в неделю"]
[{"$nulls":3},"10а класс\n(2020-2021)","11а класс \n(2021-2020)","Всего"]
["Русский язык и литература","Русский язык","Углубленный",3,3,6]
[null,"Литература","Базовый",3,3,6]
["Родной язык и родная литература","Родной язык","Базовый",1,1,2]
[null,"Иностранный язык \n(английский)","Базовый",3,3,6]
["Математика и информатика","Математика \n","Базовый",5,5,10]
[null,"Информатика","Базовый",2,2,4]
["Общественные науки","История","Базовый",2,2,4]
[null,"Обществознание","Базовый",2,2,4]
["Естественные науки","Физика","Базовый",3,2,5]
[null,"Астрономия","Базовый",null,1,1]
["Физическая культура, экология и основы безопасности жизнедеятельности","Физическая культура","Базовый",3,3,6]
[null,"Основы безопасности жизнедеятельности","Базовый",1,1,2]
["Индивидуальный проект",null,null,1,1,2]
["Дополнительные учебные предметы, \nкурсы по выбору"]
["Родной язык и родная литература","Родная литература","Базовый",1,1,2]
["Общественные науки","География","Базовый",1,null,1]
["Естественные науки","Химия","Базовый",2,2,4]
[null,"Биология","Базовый",2,2,4]
["Программирование на языке Python",null,"КВ",1,null,1]
["Основы финансовой математики",null,"КВ",1,null,1]
["Углубленное изучение некоторых вопросов математики",null,"КВ",null,1,1]
["Решение сложных и нестандартных задач \nпо математике",null,"КВ",null,1,1]
["Основы финансовой грамотности",null,"КВ",null,1,1]
["Итого",null,null,{"$f":"SUM(D7:D28)","v":37},{"$f":"SUM(E7:E29)","v":37},{"$f":"SUM(F7:F29)","v":74}]

{"sheet":"11б класс","index":11,"n_rows":33,"n_cols":6,"rows_kept":33,"merged":[[0,0,0,7],[1,0,1,7],[2,0,2,7],[3,0,3,7],[4,0,5,0],[4,1,5,1],[4,2,5,2],[4,3,4,5],[6,0,7,0],[11,0,14,0],[15,0,16,0],[15,1,18,1],[15,2,18,2],[15,3,18,3],[15,4,18,4],[15,5,18,5],[19,0,20,0],[21,0,21,1],[22,0,22,1],[23,0,24,0],[23,1,24,1],[23,2,24,2],[23,3,24,3],[23,4,24,4],[23,5,24,5],[27,0,29,0],[30,0,30,1],[31,0,31,1],[32,0,32,2]]}
["УЧЕБНЫЙ ПЛАН "]
["Муниципального бюджетного общеобразовательного учреждения \n\"Гимназия №175\" Советского района города Казани"]
["на 2021/2022 учебный год "]
["для 10б класса (универсальный профиль обучения)"]
["Предметные \nобласти","Учебные предметы","Уровень","Количество часов в неделю"]
[{"$nulls":3},"10б класс\n(2020-2021)","11б класс \n(2021-2020)","Всего"]
["Русский язык и литература","Русский язык","Углубленный",3,3,6]
[null,"Литература","Базовый",3,3,6]
["Родной язык и родная литература","Родной язык","Базовый",1,1,2]
["Иностранные языки","Иностранный язык \n(английский)","Базовый",3,3,6]
["Математика и информатика","Математика ","Базовый",5,5,10]
["Общественные науки","История","Базовый",2,2,4]
[null,"Обществознание","Базовый",2,2,4]
[null,"Право","Углубленный",2,2,4]
[null,"Экономика","Базовый",null,1,1]
["Естественные науки","Астрономия","Базовый",null,1,1]
[]
[]
[]
["Физическая культура, экология и основы безопасности жизнедеятельности","Физическая культура","Базовый",3,3,6]
[null,"Основы безопасности жизнедеятельности","Базовый",1,1,2]
["Индивидуальный проект",null,null,1,1,2]
["Дополнительные учебные предметы, \nкурсы по выбору",null,null,1,null,1]
["Родной язык и родная литература","Родная литература","Базовый",1,1,2]
[]
["Математика и информатика","Информатика","Базовый",2,2,4]
["Общественные науки","География","Базовый",1,null,1]
["Естественные науки","Физика","Базовый",2,2,4]
[null,"Химия","Базовый",2,2,4]
[null,"Биология","Базовый",1,1,2]
["Мировая художественная культура",null,"КВ",1,null,1]
["Английский язык и культуроведение",null,"КВ",null,1,1]
["Итого",null,null,{"$f":"SUM(D7:D32)","v":37},{"$f":"SUM(E7:E32)","v":37},{"$f":"SUM(F7:F32)","v":74}]

{"sheet":"11 (унив.)","index":12,"n_rows":39,"n_cols":6,"rows_kept":39,"merged":[[1,0,1,8],[2,0,2,8],[3,0,3,8],[4,0,4,8],[6,2,6,7],[7,0,22,0],[7,3,7,4],[7,5,7,7],[8,3,8,4],[8,5,8,7],[9,3,9,4],[9,5,9,7],[10,3,10,4],[10,5,10,7],[11,3,11,4],[11,5,11,7],[12,3,12,4],[12,5,12,7],[13,3,13,4],[13,5,13,7],[14,3,14,4],[14,5,14,7],[15,3,15,4],[15,5,15,7],[16,3,16,4],[16,5,16,7],[17,3,17,4],[17,5,17,7],[18,3,18,4],[18,5,18,7],[19,3,19,4],[19,5,19,7],[20,3,20,4],[20,5,20,7],[21,3,21,4],[21,5,21,7],[22,3,22,4],[22,5,22,7],[23,0,23,1],[23,3,23,4],[23,5,23,7],[24,0,25,0],[24,3,24,4],[24,5,24,7],[25,3,25,4],[25,5,25,7],[26,0,32,0],[26,3,26,4],[26,5,26,7],[27,3,27,4],[27,5,27,7],[28,3,28,4],[28,5,28,7],[29,3,29,4],[29,5,29,7],[30,3,30,4],[30,5,30,7],[31,3,31,4],[31,5,31,7],[32,3,32,4],[32,5,32,7],[33,0,37,0],[33,3,33,4],[33,5,33,7],[34,3,34,4],[34,5,34,7],[35,3,35,4],[35,5,35,7],[36,3,36,4],[36,5,36,7],[37,3,37,4],[37,5,37,7],[38,0,38,1],[38,3,38,4],[38,5,38,7]]}
[]
["УЧЕБНЫЙ ПЛАН"]
["Муниципального бюджетного общеобразовательного учреждения \n\"Гимназия №175\" Советского района города Казани"]
["на 2020/2021 учебный год "]
["для 11а класса универсального профиля"]
[]
["Компоненты\nучебного \nплана","Учебные предметы","Число недельных часов за два года обучения"]
["Обязательные предметы на базовом уровне",null,"2019/2020           (10 класс)","2020/2021                      (11 класс)",null,"Итого"]
[null,"Русский язык",1,1,null,{"$f":"SUM(C9:E9)","v":2}]
[null,"Литература",3,3,null,{"$f":"SUM(C10:E10)","v":6}]
[null,"Иностранный язык (английский)",3,3,null,6]
[null,"Математика",4,4,null,8]
[null,"Информатика и ИКТ",1,1,null,2]
[null,"История",2,2,null,4]
[null,"Обществознание \n(включая экономику и право)",2,2,null,4]
[null,"География",1,1,null,2]
[null,"Физика",2,2,null,4]
[null,"Астрономия",null,1,null,1]
[null,"Химия",1,1,null,2]
[null,"Биология",1,1,null,{"$f":"SUM(C20:E20)","v":2}]
[null,"Технология",1,1,null,{"$f":"SUM(C21:E21)","v":2}]
[null,"Основы безопасности \nжизнедеятельности",1,1,null,{"$f":"SUM(C22:E22)","v":2}]
[null,"Физическая культура",3,3,null,6]
["ИТОГО:",null,{"$f":"SUM(C9:C23)","v":26},{"$f":"SUM(D9:E23)","v":27},null,{"$f":"SUM(F9:H23)","v":53}]
["Региональный\n(национально-\nрегиональный) \nкомпонент","Родной язык",1,1,null,2]
[null,"Родная литература",1,1,null,2]
["Компонент \nобразовательного \nучреждения:\nучебные предметы","Русский язык",1,1,null,{"$f":"SUM(C27:E27)","v":2}]
[null,"Математика",1,1,null,{"$f":"SUM(C28:E28)","v":2}]
[null,"Физика",1,1,null,2]
[null,"Химия",1,1,null,{"$f":"SUM(C30:E30)","v":2}]
[null,"Биология",1,1,null,{"$f":"SUM(C31:E31)","v":2}]
[null,"Информатика и ИКТ",1,1,null,{"$f":"SUM(C32:E32)","v":2}]
[null,"Иностранный язык (английский)",1,null,null,1]
["Компонент \nобразовательного \nучреждения: элективные курсы","«Углубленное изучение некоторых вопросов математики»",1,null,null,{"$f":"SUM(C34:E34)","v":1}]
[null,"«Основы финансовой математики»",null,1,null,{"$f":"SUM(C35:E35)","v":1}]
[null,"«Азбука журналистики»",0.5,null,null,{"$f":"SUM(C36:E36)","v":0.5}]
[null,"«От текста - к творчеству»",0.5,null,null,{"$f":"SUM(C37:E37)","v":0.5}]
[null,"«Решение сложных и нестандартных задач по математике»",null,1,null,{"$f":"SUM(C38:E38)","v":1}]
["Предельно допустимая недельная нагрузка:",null,37,37,null,74]